fUSD/lending_fUSD_20250417
["ID","MTS","AMOUNT","RATE_DAILY","PERIOD"]
[358224568,1744858231669,-153.28,0.00040939,2]
[358224569,1744858231679,-4204.08396097,0.00040939,2]
[358224570,1744858231690,-1219.17424482,0.00040939,2]
[358224571,1744858231701,-3002.0,0.00040939,2]
[358224572,1744858231786,-724.34345755,0.00040939,2]
[358224573,1744858231797,-565.38833666,0.00040939,2]
[358224574,1744858231807,-623.8818189,0.00040939,2]
[358224575,1744858231825,-22.7281811,0.00040939,2]
[358224576,1744858231834,-350.0,0.00043483,5]
[358224577,1744858231844,-27.2718189,0.00043483,30]
[358224579,1744858231855,-123.7181811,0.00043483,30]
[358224581,1744858231865,-5453.14,0.00043483,2]
[358224582,1744858231874,-336.23374744,0.00043987,5]
[358224584,1744858231883,-271.997908,0.00046917,2]
[358224586,1744858231893,-824.07,0.00047153,2]
[358224588,1744858231902,-621.0401,0.00047759,2]
[358224590,1744858231912,-1125.38,0.00047859,2]
[358224591,1744858231921,-3036.11,0.00047859,2]
[358224593,1744858231931,-189.85586995,0.00047859,30]
[358224595,1744858231940,-1000.0,0.00048,120]
[358224597,1744858231950,-985.99305182,0.000481,2]
[358224600,1744858231965,-931.31318612,0.000481,2]
[358224602,1744858231976,-417.12196834,0.000481,2]
[358224604,1744858231987,-6033.17179372,0.000481,2]
[358224606,1744858231996,-1005.96,0.000481,2]
[358224608,1744858232005,-152.23,0.000481,45]
[358224610,1744858232014,-152.23,0.000481,45]
[358224611,1744858232023,-152.23,0.000481,45]
[358224613,1744858232033,-152.23,0.000481,45]
[358224615,1744858232041,-152.23,0.000481,45]
[358224617,1744858232051,-152.23,0.000481,45]
[358224619,1744858232061,-152.23,0.000481,45]
[358224621,1744858232071,-152.23,0.000481,45]
[358224623,1744858232080,-500.0,0.000486,120]
[358224625,1744858232089,-351.21,0.00049047,120]
[358224627,1744858232098,-436.6,0.00049229,2]
[358224629,1744858232107,-747.55,0.00049357,2]
[358224631,1744858232117,-824.07,0.00049417,2]
[358224633,1744858232126,-200.0,0.00049524,2]
[358224635,1744858232136,-150.0,0.00049709,2]
[358224637,1744858232145,-178.31,0.00049743,2]
[358224639,1744858232156,-5328.4971586,0.00049788,4]
[358224641,1744858232164,-2000.0,0.000499,2]
[358224643,1744858232174,-150.99,0.000499,2]
[358224645,1744858232183,-854.97,0.000499,10]
[358224647,1744858232192,-1000.0,0.0005,120]
[358224649,1744858232201,-500.0,0.00050006,120]
[358224651,1744858232211,-890.39,0.00050012,2]
[358224653,1744858232221,-1000.0,0.00050012,120]
[358224655,1744858232230,-1331.81046406,0.0005002,2]
[358224726,1744858237451,-3185.31845374,0.0005002,2]
[358224727,1744858237463,-3110.01716113,0.0005002,2]
[358224728,1744858237474,-2048.003565,0.0005002,2]
[358224729,1744858237485,-4059.62035122,0.0005002,2]
[358224730,1744858237498,-1795.08269747,0.0005002,2]
[358224731,1744858237509,-8370.14730738,0.0005002,2]
[358224732,1744858237518,-150.0,0.0005002,2]
[358224733,1744858237527,-250.0,0.00050688,120]
[358224734,1744858237536,-672.69,0.00050688,2]
[358224735,1744858237545,-672.69,0.00050701,2]
[358224736,1744858237555,-672.69,0.00050714,2]
[358224737,1744858237564,-672.69,0.00050728,2]
[358224738,1744858237573,-672.69,0.00050741,2]
[358224739,1744858237582,-672.69,0.00050755,2]
[358224740,1744858237592,-672.69,0.00050768,2]
[358224741,1744858237601,-672.69,0.00050781,2]
[358224742,1744858237610,-672.69,0.00050795,2]
[358224743,1744858237619,-530.28822588,0.00050808,2]
[358224773,1744858238060,-142.40177412,0.00050808,2]
[358224775,1744858238069,-131.82073146,0.00050821,2]
[358224778,1744858238081,-540.86926854,0.00050821,2]
[358224780,1744858238091,-672.69,0.00050835,2]
[358224782,1744858238100,-672.69,0.00050848,2]
[358224784,1744858238110,-1274.276,0.00050848,91]
[358224786,1744858238119,-672.69,0.00050861,2]
[358224788,1744858238128,-672.69,0.00050875,2]
[358224790,1744858238137,-672.69,0.00050888,2]
[358224792,1744858238146,-672.69,0.00050901,2]
[358224794,1744858238155,-672.69,0.00050915,2]
[358224796,1744858238164,-672.69,0.00050928,2]
[358224797,1744858238173,-672.69,0.00050941,2]
[358224799,1744858238182,-173.19397079,0.00051,120]
[358224802,1744858238192,-500.0,0.00051413,120]
[358224803,1744858238201,-824.07,0.00051681,2]
[358224805,1744858238211,-2000.0,0.000519,120]
[358224807,1744858238220,-643.4851832,0.00051954,29]
[358224809,1744858238230,-2228.90086052,0.00051954,24]
[358224813,1744858238395,-10364.03734859,0.00052,31]
[358224814,1744858238419,-693.58394987,0.00052,31]
[358224815,1744858238428,-1000.0,0.00052,120]
[358224816,1744858238437,-1545.0,0.00052,120]
[358224817,1744858238447,-190.0,0.00052,120]
[358224818,1744858238456,-190.0,0.00052,31]
[358224819,1744858238466,-191.55,0.00052,14]
[358224820,1744858238475,-2371.173846,0.00052,5]
[358224821,1744858238485,-157.0,0.00052,120]
[358224822,1744858238495,-311.79,0.00052024,30]
[358224823,1744858238504,-82671.20337,0.00052034,4]
[358224824,1744858238514,-311.79,0.00052034,30]
[358224825,1744858238523,-311.79,0.00052034,30]
[358224826,1744858238532,-311.79,0.00052034,30]
[358224827,1744858238543,-311.79,0.00052034,30]
[358224828,1744858238552,-311.79,0.00052034,30]
[358224829,1744858238561,-311.79,0.00052034,30]
[358224830,1744858238571,-311.79,0.00052034,30]
[358224831,1744858238579,-311.79,0.00052034,30]
[358224832,1744858238588,-311.79,0.00052034,30]
[358224833,1744858238597,-727.75219586,0.00052043,30]
[358224834,1744858238606,-500.0,0.00052043,120]
[358224835,1744858238615,-500.0,0.00052043,120]
[358224836,1744858238625,-419.84368971,0.00052043,120]
[358224837,1744858238634,-298.07302448,0.00052043,120]
[358224838,1744858238643,-137887.60988184,0.00052044,4]
[358224839,1744858238661,-5566.40226193,0.00052044,4]
[358224840,1744858238672,-2573.49614335,0.00052044,4]
[358224845,1744858239608,-1682.55519211,0.00052044,4]
[358224846,1744858239619,-13603.44984916,0.00052044,4]
[358224847,1744858239768,-231374.70267961,0.00052044,4]
[358224848,1744858239778,-147092.736762,0.00052044,4]
[358224849,1744858239788,-587.3948115,0.00052044,7]
[358224850,1744858239798,-300.0,0.00052053,30]
[358224851,1744858239808,-150.0,0.00052053,120]
[358224852,1744858239818,-210.40490315,0.00052053,120]
[358224853,1744858239828,-247.36282318,0.00052053,120]
[358224854,1744858239837,-235.3306834,0.00052053,120]
[358224855,1744858239847,-211.04131202,0.00052053,31]
[358224856,1744858239857,-248.01,0.00052053,120]
[358224857,1744858239867,-205.490994,0.00052054,120]
[358224858,1744858239876,-500.0,0.00052054,120]
[358224859,1744858239885,-500.0,0.00052054,120]
[358224860,1744858239902,-500.0,0.00052054,120]
[358224861,1744858239921,-500.0,0.00052054,120]
[358224862,1744858239940,-500.0,0.00052054,120]
[358224863,1744858239961,-500.0,0.00052054,120]
[358224864,1744858239977,-1027.9,0.00052054,120]
[358224865,1744858239995,-500.0,0.00052054,120]
[358224866,1744858240016,-1018.07,0.00052054,120]
[358224867,1744858240037,-500.0,0.00052054,120]
[358224868,1744858240055,-500.0,0.00052054,120]
[358224869,1744858240076,-500.0,0.00052054,120]
[358224870,1744858240095,-500.0,0.00052054,120]
[358224873,1744858240112,-500.0,0.00052054,120]
[358224875,1744858240128,-500.0,0.00052054,120]
[358224877,1744858240148,-159.07304849,0.00052054,120]
[358224879,1744858240160,-500.0,0.00052054,120]
[358224880,1744858240179,-609.85502155,0.00052054,120]
[358224881,1744858240193,-500.0,0.00052054,120]
[358224882,1744858240215,-349.34569311,0.00052054,120]
[358224883,1744858240230,-500.0,0.00052054,120]
[358224884,1744858240245,-500.0,0.00052054,120]
[358224885,1744858240262,-500.0,0.00052054,120]
[358224886,1744858240279,-446.56683162,0.00052054,120]
[358224887,1744858240295,-500.0,0.00052054,120]
[358224888,1744858240310,-500.0,0.00052054,120]
[358224889,1744858240326,-500.0,0.00052054,120]
[358224890,1744858240342,-157.50103017,0.00052054,120]
[358224891,1744858240359,-500.0,0.00052054,120]
[358224892,1744858240374,-500.0,0.00052054,120]
[358224893,1744858240390,-500.0,0.00052054,120]
[358224894,1744858240405,-645.79774081,0.00052054,120]
[358224895,1744858240423,-500.0,0.00052054,120]
[358224896,1744858240439,-506.81160882,0.00052054,120]
[358224897,1744858240454,-500.0,0.00052054,120]
[358224898,1744858240470,-500.0,0.00052054,120]
[358224899,1744858240487,-569.2631473,0.00052054,120]
[358224900,1744858240507,-502.5103671,0.00052054,120]
[358224901,1744858240522,-507.51531475,0.00052054,120]
[358224902,1744858240537,-500.0,0.00052054,120]
[358224903,1744858240553,-513.54778463,0.00052054,120]
[358224904,1744858240568,-2828.8,0.00052054,2]
[358224905,1744858240584,-311.184893,0.00052054,120]
[358224906,1744858240600,-500.0,0.00052054,120]
[358224907,1744858240616,-500.0,0.00052054,120]
[358224908,1744858240632,-519.79119403,0.00052054,120]
[358224909,1744858240647,-131030.97,0.00052054,7]
[358224910,1744858240662,-500.0,0.00052054,120]
[358224911,1744858240678,-154.21777865,0.00052054,120]
[358224912,1744858240692,-504.89792784,0.00052054,120]
[358224913,1744858240708,-1074.6,0.00052054,120]
[358224914,1744858240723,-512.75,0.00052054,120]
[358224915,1744858240737,-505.3727653,0.00052054,120]
[358224916,1744858240753,-500.0,0.00052054,120]
[358224917,1744858240769,-500.0,0.00052054,120]
[358224918,1744858240783,-515.76605733,0.00052054,120]
[358224919,1744858240798,-500.0,0.00052054,120]
[358224920,1744858240813,-500.0,0.00052054,120]
[358224921,1744858240828,-500.0,0.00052054,120]
[358224922,1744858240842,-500.0,0.00052054,120]
[358224923,1744858240862,-500.0,0.00052054,120]
[358224924,1744858240883,-509.63644238,0.00052054,120]
[358224925,1744858240898,-500.0,0.00052054,120]
[358224926,1744858240913,-500.0,0.00052054,120]
[358224927,1744858240927,-500.0,0.00052054,120]
[358224928,1744858240942,-507.64504337,0.00052054,120]
[358224929,1744858240956,-502.63434701,0.00052054,120]
[358224930,1744858240970,-229.63138548,0.00052054,120]
[358224931,1744858240986,-500.0,0.00052054,120]
[358224932,1744858241000,-500.0,0.00052054,120]
[358224933,1744858241015,-525.21411495,0.00052054,120]
[358224934,1744858241029,-500.0,0.00052054,120]
[358224935,1744858241043,-531.89847785,0.00052054,120]
[358224936,1744858241060,-500.0,0.00052054,120]
[358224937,1744858241074,-500.0,0.00052054,120]
[358224938,1744858241088,-500.0,0.00052054,120]
[358224939,1744858241103,-500.0,0.00052054,120]
[358224940,1744858241118,-500.0,0.00052054,120]
[358224941,1744858241132,-500.0,0.00052054,120]
[358224942,1744858241146,-500.0,0.00052054,120]
[358224943,1744858241161,-532.88918878,0.00052054,120]
[358224944,1744858241175,-500.0,0.00052054,120]
[358224945,1744858241191,-500.0,0.00052054,120]
[358224946,1744858241206,-500.0,0.00052054,120]
[358224947,1744858241216,-500.0,0.00052054,120]
[358224948,1744858241225,-500.0,0.00052054,120]
[358224949,1744858241235,-500.0,0.00052054,120]
[358224950,1744858241244,-500.0,0.00052054,120]
[358224951,1744858241255,-500.0,0.00052054,120]
[358224952,1744858241264,-512.07372918,0.00052054,120]
[358224953,1744858241274,-442.52277904,0.00052054,120]
[358224954,1744858241283,-500.0,0.00052054,120]
[358224955,1744858241562,-500.0,0.00052054,120]
[358224956,1744858241599,-500.0,0.00052054,120]
[358224957,1744858241617,-555.3160319,0.00052054,120]
[358224958,1744858241627,-501.51,0.00052054,120]
[358224959,1744858241637,-500.0,0.00052054,120]
[358224960,1744858241646,-500.0,0.00052054,120]
[358224961,1744858241656,-500.0,0.00052054,120]
[358224962,1744858241666,-500.0,0.00052054,120]
[358224963,1744858241675,-500.0,0.00052054,120]
[358224964,1744858241684,-500.0,0.00052054,120]
[358224965,1744858241693,-531.92610197,0.00052054,120]
[358224966,1744858241702,-500.0,0.00052054,120]
[358224967,1744858241712,-500.0,0.00052054,120]
[358224968,1744858241722,-500.0,0.00052054,120]
[358224969,1744858241731,-275.22674024,0.00052054,120]
[358224970,1744858241740,-500.0,0.00052054,120]
[358224971,1744858241750,-540.81041246,0.00052054,120]
[358224972,1744858241759,-500.0,0.00052054,120]
[358224973,1744858241768,-500.0,0.00052054,120]
[358224974,1744858241778,-500.0,0.00052054,120]
[358224975,1744858241787,-500.0,0.00052054,120]
[358224976,1744858241796,-500.0,0.00052054,120]
[358224977,1744858241806,-500.0,0.00052054,120]
[358224978,1744858241816,-500.0,0.00052054,120]
[358224979,1744858241826,-500.0,0.00052054,120]
[358224980,1744858241835,-458.12811177,0.00052054,120]
[358224981,1744858241845,-300.0,0.00052054,120]
[358224982,1744858241854,-258.01969997,0.00052054,120]
[358224983,1744858241865,-500.0,0.00052054,120]
[358224984,1744858241874,-500.0,0.00052054,120]
[358224985,1744858241883,-500.0,0.00052054,120]
[358224986,1744858241893,-500.0,0.00052054,120]
[358224987,1744858241903,-500.0,0.00052054,120]
[358224988,1744858241913,-538.03812715,0.00052054,120]
[358224989,1744858241923,-500.0,0.00052054,120]
[358224990,1744858241932,-422.33706654,0.00052054,120]
[358224991,1744858241941,-500.0,0.00052054,120]
[358224992,1744858241951,-530.84695087,0.00052054,120]
[358224993,1744858241960,-500.0,0.00052054,120]
[358224994,1744858241969,-500.0,0.00052054,120]
[358224995,1744858241979,-1163.74,0.00052054,120]
[358224996,1744858241988,-500.0,0.00052054,120]
[358224997,1744858241998,-500.0,0.00052054,120]
[358224998,1744858242008,-500.0,0.00052054,120]
[358224999,1744858242018,-500.0,0.00052054,120]
[358225000,1744858242028,-500.0,0.00052054,120]
[358225001,1744858242037,-500.0,0.00052054,120]
[358225002,1744858242049,-1000.0,0.00052054,120]
[358225003,1744858242059,-500.0,0.00052054,120]
[358225004,1744858242070,-942.51,0.00052054,120]
[358225005,1744858242079,-500.0,0.00052054,120]
[358225006,1744858242089,-500.0,0.00052054,120]
[358225007,1744858242099,-500.0,0.00052054,120]
[358225008,1744858242109,-524.18320552,0.00052054,120]
[358225009,1744858242119,-1668.15,0.00052054,120]
[358225010,1744858242129,-500.0,0.00052054,120]
[358225011,1744858242139,-500.0,0.00052054,120]
[358225012,1744858242148,-500.0,0.00052054,120]
[358225013,1744858242158,-436.03192084,0.00052054,120]
[358225014,1744858242168,-500.0,0.00052054,120]
[358225015,1744858242178,-500.0,0.00052054,120]
[358225016,1744858242188,-500.0,0.00052054,120]
[358225017,1744858242197,-500.0,0.00052054,120]
[358225018,1744858242207,-500.0,0.00052054,120]
[358225019,1744858242217,-500.0,0.00052054,120]
[358225020,1744858242226,-500.0,0.00052054,120]
[358225021,1744858242236,-500.0,0.00052054,120]
[358225022,1744858242245,-522.72714205,0.00052054,120]
[358225023,1744858242255,-511.52953534,0.00052054,120]
[358225024,1744858242265,-500.0,0.00052054,120]
[358225025,1744858242274,-500.0,0.00052054,120]
[358225026,1744858242283,-500.0,0.00052054,120]
[358225027,1744858242293,-747.62,0.00052054,120]
[358225028,1744858242302,-500.0,0.00052054,120]
[358225029,1744858242313,-500.0,0.00052054,120]
[358225031,1744858242323,-566.44765556,0.00052054,120]
[358225032,1744858242333,-500.0,0.00052054,120]
[358225033,1744858242343,-501.39089966,0.00052054,120]
[358225035,1744858242353,-473.50230288,0.00052054,120]
[358225036,1744858242362,-500.0,0.00052054,120]
[358225038,1744858242371,-500.0,0.00052054,120]
[358225040,1744858242380,-500.0,0.00052054,120]
[358225041,1744858242389,-498.5502439,0.00052054,120]
[358225043,1744858242398,-500.0,0.00052054,120]
[358225044,1744858242408,-500.0,0.00052054,120]
[358225046,1744858242420,-500.0,0.00052054,120]
[358225047,1744858242431,-500.0,0.00052054,120]
[358225049,1744858242440,-500.0,0.00052054,120]
[358225051,1744858242450,-500.0,0.00052054,120]
[358225053,1744858242461,-500.0,0.00052054,120]
[358225054,1744858242471,-492.77429325,0.00052054,120]
[358225056,1744858242481,-500.0,0.00052054,120]
[358225058,1744858242490,-518.67312309,0.00052054,120]
[358225060,1744858242501,-500.98317617,0.00052054,120]
[358225061,1744858242511,-500.0,0.00052054,120]
[358225062,1744858242521,-500.0,0.00052054,120]
[358225063,1744858242530,-500.0,0.00052054,120]
[358225064,1744858242540,-500.0,0.00052054,120]
[358225065,1744858242549,-575.54829567,0.00052054,120]
[358225066,1744858242559,-517.75335474,0.00052054,120]
[358225067,1744858242568,-500.0,0.00052054,120]
[358225068,1744858242578,-500.0,0.00052054,120]
[358225069,1744858242587,-500.0,0.00052054,120]
[358225070,1744858242597,-500.0,0.00052054,120]
[358225071,1744858242606,-648.36097816,0.00052054,120]
[358225072,1744858242615,-563.5427366,0.00052054,120]
[358225073,1744858242625,-500.0,0.00052054,120]
[358225074,1744858242634,-524.32624168,0.00052054,120]
[358225075,1744858242644,-500.0,0.00052054,120]
[358225076,1744858242653,-524.51834125,0.00052054,120]
[358225077,1744858242662,-500.0,0.00052054,120]
[358225078,1744858242674,-500.0,0.00052054,120]
[358225079,1744858242685,-500.0,0.00052054,120]
[358225080,1744858242694,-500.0,0.00052054,120]
[358225081,1744858242704,-500.0,0.00052054,120]
[358225082,1744858242713,-500.0,0.00052054,120]
[358225083,1744858242722,-500.0,0.00052054,120]
[358225084,1744858242732,-500.0,0.00052054,120]
[358225085,1744858242741,-201.45159739,0.00052054,120]
[358225086,1744858242752,-500.0,0.00052054,120]
[358225087,1744858242761,-536.16286584,0.00052054,120]
[358225088,1744858242771,-515.46511696,0.00052054,120]
[358225089,1744858242780,-500.0,0.00052054,120]
[358225090,1744858242790,-500.0,0.00052054,120]
[358225091,1744858242799,-506.30358497,0.00052054,120]
[358225092,1744858242808,-1683.3,0.00052054,120]
[358225093,1744858242818,-964.81,0.00052054,30]
[358225094,1744858242828,-367.76272088,0.00052054,120]
[358225095,1744858242837,-165.20153337,0.00052054,120]
[358225096,1744858242846,-595.64184815,0.00052054,120]
[358225097,1744858242855,-500.0,0.00052054,120]
[358225098,1744858242864,-500.0,0.00052054,120]
[358225099,1744858242874,-500.0,0.00052054,120]
[358225100,1744858242883,-500.0,0.00052054,120]
[358225101,1744858242893,-500.0,0.00052054,120]
[358225102,1744858242902,-673.66,0.00052054,2]
[358225103,1744858242912,-500.0,0.00052054,120]
[358225104,1744858242921,-500.0,0.00052054,120]
[358225105,1744858242931,-500.0,0.00052054,120]
[358225106,1744858242940,-500.0,0.00052054,120]
[358225107,1744858242950,-591.62,0.00052054,120]
[358225108,1744858242960,-500.0,0.00052054,30]
[358225109,1744858242969,-500.0,0.00052054,120]
[358225110,1744858242979,-500.0,0.00052054,120]
[358225111,1744858242988,-610.21579819,0.00052054,120]
[358225112,1744858242997,-381.53631408,0.00052054,120]
[358225113,1744858243008,-739.67,0.00052054,120]
[358225114,1744858243018,-739.67,0.00052054,120]
[358225115,1744858243029,-500.0,0.00052054,120]
[358225116,1744858243039,-500.0,0.00052054,120]
[358225117,1744858243048,-500.0,0.00052054,120]
[358225118,1744858243058,-500.0,0.00052054,120]
[358225119,1744858243067,-500.0,0.00052054,120]
[358225120,1744858243077,-500.0,0.00052054,120]
[358225121,1744858243086,-500.0,0.00052054,120]
[358225122,1744858243095,-500.0,0.00052054,120]
[358225123,1744858243105,-500.0,0.00052054,120]
[358225124,1744858243114,-500.0,0.00052054,120]
[358225125,1744858243123,-575.79325236,0.00052054,120]
[358225126,1744858243132,-1000.0,0.00052054,120]
[358225127,1744858243141,-531.01114386,0.00052054,120]
[358225128,1744858243150,-500.0,0.00052054,120]
[358225129,1744858243160,-500.0,0.00052054,120]
[358225130,1744858243168,-614.55,0.00052054,120]
[358225131,1744858243177,-623.61642494,0.00052054,120]
[358225132,1744858243187,-500.0,0.00052054,120]
[358225133,1744858243196,-523.10010093,0.00052054,120]
[358225134,1744858243205,-500.0,0.00052054,120]
[358225135,1744858243215,-500.0,0.00052054,120]
[358225136,1744858243224,-500.0,0.00052054,120]
[358225137,1744858243234,-500.0,0.00052054,120]
[358225138,1744858243243,-512.8582447,0.00052054,120]
[358225139,1744858243252,-500.0,0.00052054,120]
[358225140,1744858243262,-504.94930942,0.00052054,120]
[358225141,1744858243271,-500.0,0.00052054,120]
[358225142,1744858243280,-508.63367599,0.00052054,120]
[358225143,1744858243290,-500.0,0.00052054,120]
[358225144,1744858243299,-500.0,0.00052054,120]
[358225145,1744858243308,-1727.98,0.00052054,120]
[358225146,1744858243317,-522.99915103,0.00052054,120]
[358225147,1744858243327,-500.0,0.00052054,120]
[358225148,1744858243336,-418.27290467,0.00052054,120]
[358225149,1744858243345,-500.0,0.00052054,120]
[358225150,1744858243355,-500.0,0.00052054,120]
[358225151,1744858243364,-500.0,0.00052054,120]
[358225152,1744858243374,-500.0,0.00052054,120]
[358225153,1744858243383,-619.53886953,0.00052054,120]
[358225154,1744858243393,-500.0,0.00052054,120]
[358225155,1744858243402,-500.0,0.00052054,120]
[358225156,1744858243411,-500.0,0.00052054,120]
[358225157,1744858243424,-500.0,0.00052054,120]
[358225158,1744858243433,-500.0,0.00052054,120]
[358225159,1744858243443,-539.28,0.00052054,120]
[358225160,1744858243452,-1975.51,0.00052054,120]
[358225161,1744858243463,-500.0,0.00052054,120]
[358225162,1744858243473,-500.0,0.00052054,120]
[358225163,1744858243482,-500.0,0.00052054,120]
[358225164,1744858243491,-567.86,0.00052054,120]
[358225165,1744858243501,-520.46472382,0.00052054,120]
[358225166,1744858243511,-500.0,0.00052054,120]
[358225167,1744858243521,-1074.62,0.00052054,120]
[358225168,1744858243531,-815.44,0.00052054,120]
[358225169,1744858243541,-500.0,0.00052054,120]
[358225170,1744858243550,-500.0,0.00052054,120]
[358225171,1744858243561,-500.0,0.00052054,120]
[358225172,1744858243571,-500.0,0.00052054,120]
[358225173,1744858243582,-669.36,0.00052054,120]
[358225174,1744858243593,-500.0,0.00052054,120]
[358225175,1744858243603,-1264.26,0.00052054,120]
[358225176,1744858243614,-500.0,0.00052054,120]
[358225177,1744858243623,-714.49,0.00052054,120]
[358225178,1744858243633,-250.0,0.00052054,120]
[358225179,1744858243642,-217.942531,0.00052054,120]
[358225180,1744858243651,-500.0,0.00052054,120]
[358225181,1744858243660,-500.0,0.00052054,120]
[358225182,1744858243670,-563.94042248,0.00052054,120]
[358225183,1744858243679,-500.0,0.00052054,120]
[358225184,1744858243688,-500.0,0.00052054,120]
[358225185,1744858243697,-500.0,0.00052054,120]
[358225186,1744858243707,-500.0,0.00052054,120]
[358225187,1744858243716,-767.85,0.00052054,120]
[358225188,1744858243725,-500.0,0.00052054,120]
[358225189,1744858243735,-500.0,0.00052054,120]
[358225190,1744858243744,-1953.53,0.00052054,120]
[358225191,1744858243754,-405.08245071,0.00052054,120]
[358225192,1744858243763,-500.0,0.00052054,120]
[358225193,1744858243773,-500.0,0.00052054,120]
[358225194,1744858243784,-500.0,0.00052054,120]
[358225195,1744858243794,-500.0,0.00052054,120]
[358225196,1744858243803,-500.0,0.00052054,120]
[358225197,1744858243812,-609.46,0.00052054,120]
[358225198,1744858243822,-503.70574017,0.00052054,120]
[358225199,1744858243831,-500.0,0.00052054,120]
[358225200,1744858243840,-500.0,0.00052054,120]
[358225201,1744858243850,-500.0,0.00052054,120]
[358225202,1744858243859,-500.0,0.00052054,120]
[358225203,1744858243868,-500.0,0.00052054,120]
[358225204,1744858243878,-832.63,0.00052054,120]
[358225205,1744858243887,-500.0,0.00052054,120]
[358225206,1744858243897,-207.87540485,0.00052054,120]
[358225207,1744858243906,-532.38301285,0.00052054,120]
[358225208,1744858243915,-500.0,0.00052054,120]
[358225209,1744858243924,-2867.27,0.00052054,120]
[358225210,1744858243934,-500.0,0.00052054,120]
[358225211,1744858243943,-500.0,0.00052054,120]
[358225212,1744858243952,-500.0,0.00052054,120]
[358225213,1744858243961,-500.0,0.00052054,60]
[358225214,1744858243971,-500.0,0.00052054,120]
[358225215,1744858243980,-500.0,0.00052054,120]
[358225216,1744858243989,-159.303712,0.00052054,120]
[358225217,1744858243999,-1201.93,0.00052054,120]
[358225218,1744858244009,-500.0,0.00052054,120]
[358225219,1744858244018,-500.0,0.00052054,120]
[358225220,1744858244028,-500.0,0.00052054,120]
[358225221,1744858244037,-500.0,0.00052054,120]
[358225222,1744858244046,-500.0,0.00052054,120]
[358225223,1744858244057,-500.0,0.00052054,120]
[358225224,1744858244066,-906.23,0.00052054,120]
[358225225,1744858244075,-519.58233385,0.00052054,120]
[358225226,1744858244084,-1534.19,0.00052054,120]
[358225227,1744858244094,-500.0,0.00052054,120]
[358225228,1744858244104,-504.83001895,0.00052054,120]
[358225229,1744858244113,-500.0,0.00052054,120]
[358225230,1744858244122,-500.0,0.00052054,120]
[358225231,1744858244133,-523.67091406,0.00052054,120]
[358225232,1744858244142,-500.0,0.00052054,120]
[358225233,1744858244151,-1284.74,0.00052054,120]
[358225234,1744858244160,-500.0,0.00052054,120]
[358225235,1744858244169,-500.0,0.00052054,120]
[358225236,1744858244178,-500.0,0.00052054,120]
[358225237,1744858244188,-500.0,0.00052054,120]
[358225238,1744858244197,-1860.5,0.00052054,120]
[358225239,1744858244206,-500.0,0.00052054,120]
[358225240,1744858244215,-500.0,0.00052054,120]
[358225241,1744858244225,-506.66142615,0.00052054,120]
[358225242,1744858244234,-500.0,0.00052054,120]
[358225243,1744858244243,-1008.59,0.00052054,120]
[358225244,1744858244252,-500.0,0.00052054,120]
[358225245,1744858244261,-500.0,0.00052054,120]
[358225246,1744858244270,-500.0,0.00052054,120]